bitfinex/quotes_ETHUSD_20230404
["timestamp","ask_amount","ask_price","bid_price","bid_amount"]
[1680646757187,1.41136,1870.1,1869.9,0.1]
[1680646758149,1.144,1870.1,1869.9,0.1]
[1680646758999,1.41136,1870.1,1869.9,0.1]
[1680646759982,1.144,1870.1,1869.9,0.1]
[1680646760474,1.41136,1870.1,1869.9,0.1]
[1680646760681,1.144,1870.1,1869.9,0.1]
[1680646760866,1.41136,1870.1,1869.9,0.1]
[1680646761069,1.144,1870.1,1869.9,0.1]
[1680646761689,1.41136,1870.1,1869.9,0.1]
[1680646762402,1.40889606,1870.1,1869.9,0.1]
[1680646762615,1.40936,1870.1,1869.9,0.1]
[1680646763681,1.142,1870.1,1869.9,0.1]
[1680646764100,1.40936,1870.1,1869.9,0.1]
[1680646764982,1.142,1870.1,1869.9,0.1]
[1680646770329,1.135,1870.3,1869.9,0.34065]
[1680646770525,1.135,1870.3,1869.9,0.1]
[1680646771487,1.135,1870.3,1869.9,0.34065]
[1680646772022,1.135,1870.3,1869.9,0.1]
[1680646772217,8.91142,1870.4,1869.9,0.1]
[1680646772525,8.92042,1870.4,1869.9,0.1]
[1680646772818,8.91142,1870.4,1869.9,0.1]
[1680646773026,5.6441,1870.4,1869.9,0.34065]
[1680646773173,0.002,1870.4,1869.9,3.58797218]
[1680646773527,9.1582787,1870.6,1870.0,0.59943722]
[1680646774029,9.1582787,1870.6,1870.1,2.78796571]
[1680646774030,0.1347787,1870.6,1870.1,2.78796571]
[1680646774176,0.1327787,1870.6,1870.2,0.72182]
[1680646774519,0.1327787,1870.6,1870.3,0.312772]
[1680646776206,0.1327787,1870.6,1870.3,0.072182]
[1680646776417,0.1327787,1870.6,1870.3,0.06929946]
[1680646776877,0.1327787,1870.6,1870.3,0.30989946]
[1680646777076,0.1327787,1870.6,1870.3,0.06929946]
[1680646777972,0.1327787,1870.6,1870.3,0.30989946]
[1680646781828,0.1327787,1870.6,1870.3,0.79109946]
[1680646782028,0.1327787,1870.6,1870.4,0.07910995]
[1680646782247,0.1327787,1870.6,1870.4,0.31967995]
[1680646782395,0.1327787,1870.6,1870.4,0.07910995]
[1680646783037,0.1327787,1870.6,1870.4,0.31968995]
[1680646783241,0.1327787,1870.6,1870.4,0.80086995]
[1680646783398,0.1327787,1870.6,1870.5,0.320657]
[1680646784840,0.1327787,1870.6,1870.5,0.080087]
[1680646785246,0.1327787,1870.6,1870.4,0.24057]
[1680646786305,0.1327787,1870.6,1870.4,0.24058]
[1680646788344,0.1327787,1870.6,1870.3,0.4812]
[1680646788593,0.1327787,1870.6,1870.4,0.24058]
[1680646795740,0.002,1870.9,1870.5,2.76602218]
[1680646795988,1.133,1871.2,1870.6,0.99828222]
[1680646796190,0.009,1871.2,1870.6,3.7643044]
[1680646796543,4.78523642,1871.3,1870.6,3.7643044]
[1680646796738,4.78523642,1871.3,1870.7,0.37643044]
[1680646796945,4.78523642,1871.3,1870.8,0.24052]
[1680646797344,4.7792776,1871.3,1870.8,0.24252]
[1680646797547,4.7732776,1871.3,1870.8,0.24052]
[1680646797775,4.7732776,1871.3,1870.8,0.24652]
[1680646797980,4.7732776,1871.3,1870.8,0.85426304]
[1680646798675,4.7732776,1871.3,1870.8,1.33533304]
[1680646799577,4.7732776,1871.3,1870.8,1.35726835]
[1680646802681,4.7732776,1871.3,1870.8,0.87619835]
[1680646804600,1.135,1871.2,1870.8,0.006]
[1680646804803,1.40222,1871.2,1870.6,0.006]
[1680646805596,1.93663,1871.2,1870.6,0.006]
[1680646805756,1.93663,1871.2,1870.5,9.41966]
[1680646805951,1.93663,1871.2,1870.5,12.18568218]
[1680646806150,2.60782076,1871.2,1870.5,13.9279174]
[1680646807690,2.60782076,1871.2,1870.5,13.6873574]
[1680646808734,1.135,1871.0,1870.5,13.6873574]
[1680646808938,1.40224,1871.0,1870.5,13.6873574]
[1680646809242,1.135,1871.0,1870.5,0.006]
[1680646809396,1.135,1870.8,1870.4,0.006]
[1680646809593,1.135,1870.8,1870.3,0.002]
[1680646809594,1.66954,1870.8,1870.3,0.004]
[1680646809795,1.93681,1870.8,1870.3,0.004]
[1680646810020,2.582841,1870.8,1870.3,0.004]
[1680646810340,12.861441,1870.8,1870.3,0.006]
[1680646810493,12.863441,1870.8,1870.2,0.006]
[1680646810694,12.863441,1870.8,1870.2,0.02794235]
[1680646812121,1.135,1870.7,1870.2,0.02794235]
[1680646812338,1.40228,1870.7,1870.2,1.53864759]
[1680646813331,1.40228,1870.7,1870.2,0.02794235]
[1680646817195,1.40228,1870.7,1870.2,0.26855235]
[1680646818042,1.40228,1870.7,1870.2,0.02794235]
[1680646818397,1.40517272,1870.7,1870.2,0.26455235]
[1680646818603,1.39917272,1870.7,1870.2,0.81411759]
[1680646819036,1.39917272,1870.7,1870.2,0.56750759]
[1680646819343,1.39917272,1870.7,1870.2,0.80811759]
[1680646819523,1.39917272,1870.7,1870.2,0.56750759]
[1680646819705,1.39917272,1870.7,1870.2,0.57350759]
[1680646820327,1.39917272,1870.7,1870.2,0.81411759]
[1680646820746,1.39917272,1870.7,1870.2,0.57350759]
[1680646821304,1.39917272,1870.7,1870.2,0.81411759]
[1680646821922,1.39917272,1870.7,1870.2,0.57350759]
[1680646822239,0.26728,1870.7,1870.2,0.80811759]
[1680646822395,0.26728,1870.7,1870.2,0.81411759]
[1680646823643,0.26728,1870.7,1870.2,0.57350759]
[1680646824052,0.26728,1870.7,1870.2,0.81411759]
[1680646825657,11.72241,1870.8,1870.2,0.81411759]
[1680646825859,0.26728,1870.7,1870.2,0.57350759]
[1680646826346,0.26728,1870.7,1870.2,0.81411759]
[1680646826922,0.26728,1870.7,1870.2,0.57350759]
[1680646829365,0.26728,1870.7,1870.2,0.02794235]
[1680646829511,0.645,1870.3,1870.2,0.006]
[1680646830626,0.645,1870.3,1870.0,0.002]
[1680646830627,0.645,1870.3,1870.0,0.006]
[1680646830813,5.11172,1870.5,1869.9,0.34265]
[1680646831020,0.644,1870.3,1869.9,0.34665]
[1680646831413,0.644,1870.3,1869.9,0.106]
[1680646832345,0.644,1870.3,1869.9,0.34665]
[1680646833063,0.644,1870.3,1869.9,0.36859587]
[1680646834444,0.644,1870.3,1869.9,0.36858587]
[1680646834651,0.644,1870.3,1869.9,0.36258587]
[1680646835063,0.644,1870.3,1869.9,0.36858587]
[1680646835563,0.644,1870.3,1869.9,1.45178746]
[1680646842069,0.641,1870.4,1869.9,1.45178746]
[1680646847282,0.641,1870.4,1869.9,1.44578746]
[1680646848867,0.641,1870.4,1869.9,1.45178746]
[1680646850657,0.641,1870.4,1869.9,1.44578746]
[1680646850857,0.641,1870.4,1870.0,0.14457875]
[1680646851207,0.641,1870.4,1870.1,0.24062]
[1680646852172,10.0041,1870.5,1870.1,0.24062]
[1680646853096,10.0101,1870.5,1870.1,0.24062]
[1680646853301,10.0131,1870.5,1870.1,0.24062]
[1680646853696,10.0041,1870.5,1870.1,0.24062]
[1680646855904,10.0131,1870.5,1870.1,0.24062]
[1680646856265,10.0041,1870.5,1870.1,0.24062]
[1680646856466,10.0041,1870.5,1870.0,0.14457875]
[1680646856665,10.0041,1870.5,1870.1,0.24062]
[1680646858214,10.0041,1870.5,1870.0,0.38520875]
[1680646858576,10.0131,1870.5,1870.0,0.38520875]
[1680646858988,10.0041,1870.5,1870.0,0.38520875]
[1680646861820,10.0041,1870.5,1870.0,0.86648875]
[1680646862022,10.0041,1870.5,1870.1,0.08664888]
[1680646862322,10.0041,1870.5,1870.1,0.32726888]
[1680646863319,4.8352,1870.6,1870.5,5.636e-05]
[1680646863693,0.647,1870.7,1870.5,5.636e-05]
[1680646864031,0.645,1870.7,1870.5,5.636e-05]
[1680646864325,0.00332331,1870.5,1870.4,0.24058]
[1680646864504,0.00332331,1870.5,1870.4,0.312758]
[1680646865120,0.00332331,1870.5,1870.4,0.793938]
[1680646865287,0.00332331,1870.5,1870.4,3.55996018]
[1680646865487,0.00332331,1870.5,1870.4,13.12526018]
[1680646865719,0.00332331,1870.5,1870.4,13.77526018]
[1680646866723,0.00332331,1870.5,1870.4,13.79720019]
[1680646874334,0.00332331,1870.5,1870.4,13.79520019]
[1680646874540,0.00332331,1870.5,1870.4,13.79120019]
[1680646874939,0.00332331,1870.5,1870.4,13.79720019]
[1680646876559,0.00332331,1870.5,1870.4,13.79120019]
[1680646877008,0.00332331,1870.5,1870.4,13.06944019]
[1680646877219,0.00332331,1870.5,1870.4,13.79720019]
[1680646882059,0.00332331,1870.5,1870.4,12.43344019]
[1680646882228,0.00332331,1870.5,1870.4,13.15520019]
[1680646882426,0.00332331,1870.5,1870.4,13.15120019]
[1680646882647,0.00332331,1870.5,1870.4,13.15520019]
[1680646887784,0.00118139,1870.5,1870.4,13.14920019]
[1680646889987,0.00118139,1870.5,1870.4,13.18420019]
[1680646909954,0.654,1871.0,1870.5,0.00148164]
[1680646910103,0.654,1871.0,1870.6,0.72166]
[1680646911008,0.645,1871.0,1870.6,0.71872436]
[1680646912517,0.645,1870.9,1870.6,0.71872436]
[1680646921915,1.29,1870.7,1870.5,0.00748164]
[1680646922075,1.279,1870.8,1870.5,0.00148164]
[1680646922076,1.285,1870.6,1870.5,0.00148164]
[1680646923508,1.285,1870.6,1870.5,0.24205164]
[1680646929825,0.641,1870.6,1870.5,0.24205164]
[1680646930022,0.65,1870.8,1870.5,3.48922382]
[1680646930266,0.639,1870.8,1870.5,3.48922382]
[1680646930425,0.639,1870.8,1870.7,0.72165]
[1680646931803,0.639,1870.8,1870.7,3.48767218]
[1680646932164,0.645,1870.9,1870.7,3.48767218]
[1680646935522,0.64297156,1870.9,1870.7,3.48767218]
[1680646935824,0.64297156,1870.9,1870.8,0.34876722]
[1680646935995,0.64297156,1870.9,1870.8,0.58929722]
[1680646942105,0.64297156,1870.9,1870.8,0.34876722]
[1680646942311,0.64297156,1870.9,1870.6,0.27048767]
[1680646942523,0.645,1871.0,1870.6,3.02850985]
[1680646942709,0.643,1870.8,1870.6,3.02850985]
[1680646948715,0.643,1870.8,1870.6,0.74360767]
[1680646950484,0.643,1870.8,1870.6,0.74360767]
[1680646951984,0.645,1870.9,1870.6,0.74360767]
[1680646955957,0.645,1870.9,1870.6,0.26248767]
[1680646956155,0.645,1870.9,1870.6,0.74360767]
[1680646960296,0.64108429,1870.9,1870.6,0.74360767]
[1680646974314,0.64108429,1870.9,1870.7,2.76602218]
[1680646974521,0.64108429,1870.9,1870.8,0.99820222]
[1680646975313,2.04953099,1871.2,1870.8,0.99820222]
[1680646975610,0.9276964,1871.1,1870.8,0.99820222]
[1680646976310,1.2020124,1871.2,1870.8,0.99820222]
[1680646976674,0.92769699,1871.1,1870.8,0.99820222]
[1680646976950,0.92769699,1871.1,1870.9,0.34034022]
[1680646978229,1.2020124,1871.2,1870.9,0.34034022]
[1680646978740,0.92769772,1871.1,1870.9,0.34034022]
[1680646980366,1.2020124,1871.2,1870.9,0.09982022]
[1680646980696,1.2020124,1871.2,1870.8,0.51712222]
[1680646984575,1.19996147,1871.2,1870.8,0.51712222]
[1680646989419,1.19996147,1871.2,1870.8,0.24052]
[1680646990609,1.19996147,1871.2,1870.7,3.25311218]
[1680646990610,1.19996147,1871.2,1870.7,3.49364218]
[1680646990904,1.19996147,1871.2,1870.7,3.01255218]
[1680646994312,1.19996147,1871.2,1870.7,3.00655218]
[1680646994479,1.19996147,1871.2,1870.7,3.45393417]
[1680646995009,1.19996147,1871.2,1870.7,3.45993417]
[1680646996249,1.19996147,1871.2,1870.7,0.006]
[1680646996250,0.645,1871.0,1870.7,0.006]
[1680646996397,0.645,1871.0,1870.6,0.26848767]
[1680647005646,0.645,1871.0,1870.6,0.26448767]
[1680647005873,0.645,1871.0,1870.6,0.26848767]
[1680647007041,0.645,1871.0,1870.6,0.02793767]
[1680647007558,0.645,1871.0,1870.6,0.26849767]
[1680647008360,0.645,1871.0,1870.6,0.02793767]
[1680647008564,0.645,1871.0,1870.6,0.26849767]
[1680647010271,0.645,1871.0,1870.6,0.02793767]
[1680647010778,0.645,1871.0,1870.6,0.26849767]
[1680647011969,0.645,1871.0,1870.6,0.02793767]
[1680647012183,0.645,1870.9,1870.6,0.26849767]
[1680647012739,0.645,1870.9,1870.6,0.02793767]
[1680647013083,0.645,1870.9,1870.6,0.02193767]
[1680647013645,0.645,1870.9,1870.6,0.02793767]
[1680647014044,0.645,1870.9,1870.6,0.26849767]
[1680647015077,0.645,1870.9,1870.6,0.26249767]
[1680647015449,0.645,1870.9,1870.6,0.26849767]
[1680647015869,0.645,1870.9,1870.6,0.02793767]
[1680647020568,0.645,1870.9,1870.6,0.02193767]
[1680647021482,0.645,1870.9,1870.6,0.02793767]
[1680647022127,0.645,1871.0,1870.6,0.02793767]
[1680647022588,0.736223,1871.0,1870.6,0.02793767]
[1680647023486,0.91223,1871.0,1870.6,0.02793767]
[1680647023644,0.645,1871.0,1870.6,0.02793767]
[1680647024292,0.91223,1871.0,1870.6,0.02793767]
[1680647024464,0.645,1871.0,1870.6,0.02793767]
[1680647025497,0.645,1871.0,1870.6,0.02193767]
[1680647025689,0.645,1871.0,1870.6,0.02593767]
[1680647025912,0.645,1871.0,1870.6,0.02793767]
[1680647027399,0.91223,1871.0,1870.6,0.02793767]
[1680647027918,0.645,1871.0,1870.6,0.02793767]
[1680647028055,0.91223,1871.0,1870.6,0.02793767]
[1680647028458,0.645,1871.0,1870.6,0.02793767]
[1680647029097,1.235523,1871.0,1870.6,0.02793767]
[1680647029596,1.502753,1871.0,1870.6,0.02793767]
[1680647029762,0.64,1870.8,1870.6,0.006]
[1680647029971,0.90727,1870.8,1870.4,0.006]
[1680647030183,0.97127,1870.8,1870.4,0.006]
[1680647031057,0.644,1870.6,1870.4,0.006]
[1680647031258,0.645,1870.5,1870.4,0.006]
[1680647031488,0.644,1870.6,1870.2,5.36501]
[1680647031752,0.645,1870.4,1870.2,5.36301]
[1680647031970,0.645,1870.4,1870.2,5.1224]
[1680647032264,0.64,1870.5,1870.2,5.1224]
[1680647035896,0.64,1870.5,1870.2,0.002]
[1680647036106,0.64,1870.5,1870.1,0.02194353]
[1680647036716,0.64,1870.5,1870.1,0.26256353]
[1680647036979,0.64,1870.5,1870.1,0.02194353]
[1680647037597,0.64,1870.5,1870.1,0.26256353]
[1680647038025,0.64,1870.5,1870.1,0.02194353]
[1680647038401,0.64,1870.5,1870.1,0.26256353]
[1680647039120,2.24039,1870.5,1870.1,0.26256353]
[1680647039581,2.24039,1870.5,1870.1,0.02194353]
[1680647040414,2.24039,1870.5,1870.1,0.26256353]
[1680647041004,2.24039,1870.5,1870.1,0.02194353]
[1680647042102,0.645,1870.4,1870.1,0.02194353]
[1680647043940,0.645,1870.3,1870.0,5.0096]
[1680647044114,0.645,1870.3,1870.0,0.002]
[1680647044316,0.91233,1870.3,1869.9,5.328]
[1680647044549,0.91233,1870.3,1869.9,5.33]
[1680647045254,0.645,1870.3,1869.9,5.33]
[1680647045420,0.91233,1870.3,1869.9,5.33]
[1680647046039,0.645,1870.3,1869.9,5.33]
[1680647048964,0.645,1870.3,1869.9,5.57065]
[1680647049269,0.645,1870.3,1869.9,6.128315]
[1680647050842,0.645,1870.3,1869.9,5.887665]
[1680647052062,0.645,1870.1,1869.9,5.887665]
[1680647054971,0.645,1870.1,1869.9,6.128315]
[1680647062309,0.64,1870.3,1869.9,5.887665]
[1680647062503,0.64,1870.3,1869.9,5.33]
[1680647065501,0.64,1870.3,1869.9,5.57065]
[1680647066019,0.64,1870.3,1869.9,5.33]
[1680647067417,0.64,1870.3,1869.9,5.57065]
[1680647069296,0.64,1870.2,1869.9,5.57065]
[1680647069509,0.64,1870.2,1869.9,5.33]
[1680647069714,0.64,1870.2,1869.9,5.57065]
[1680647070292,0.64,1870.2,1869.9,5.33]
[1680647071019,0.64,1870.2,1869.9,5.57065]
[1680647071417,0.64,1870.2,1869.9,6.609615]
[1680647071617,5.6352,1870.4,1869.9,6.609615]
[1680647072012,5.6352,1870.4,1869.9,6.05195]
[1680647074026,0.656,1870.4,1869.9,6.05195]
[1680647074195,0.645,1870.4,1869.9,6.05195]
[1680647076039,2.58329888,1870.0,1869.9,0.102]
[1680647076205,5.60765095,1870.0,1869.9,0.1]
[1680647076400,1.55432989,1870.0,1869.9,0.1]
[1680647076720,1.55232989,1870.0,1869.9,0.1]
[1680647076895,1.81969989,1870.0,1869.9,0.1]
[1680647077235,1.55232989,1870.0,1869.9,0.1]
[1680647077415,1.81969989,1870.0,1869.9,0.1]
[1680647077615,2.35444989,1870.0,1869.9,0.1]
[1680647085051,2.35444989,1870.0,1869.2,0.1]
[1680647085052,8.815,1869.9,1869.2,0.1]
[1680647085224,1.284,1869.3,1869.2,0.1]
[1680647085401,3.15633,1869.3,1869.2,0.1]
[1680647085606,3.15633,1869.3,1869.1,0.1]
[1680647085858,3.315633,1869.2,1869.1,0.1]
[1680647086006,3.046103,1869.2,1869.1,0.1]
[1680647086351,12.24212518,1869.2,1869.1,0.1]
[1680647086515,12.24712518,1869.2,1869.1,0.1]
[1680647086715,12.25312518,1869.2,1869.1,0.1]
[1680647087248,9.41312518,1869.2,1869.1,0.1]
[1680647087547,9.18312518,1869.2,1869.1,0.1]
[1680647087750,6.417103,1869.2,1869.1,0.1]
[1680647088959,3.3,1869.1,1869.0,0.1]
[1680647089120,19.60827248,1869.1,1868.9,0.1]
[1680647089459,26.60082218,1869.0,1868.9,0.1]
[1680647089653,27.40538218,1869.0,1868.9,0.1]
[1680647089814,30.11779122,1869.0,1868.9,0.1]
[1680647090348,24.50279122,1869.0,1868.9,0.1]
[1680647091521,19.62175122,1869.0,1868.9,0.1]
[1680647091722,19.39175122,1869.0,1868.9,0.1]
[1680647091955,19.92679122,1869.0,1868.9,0.1]
[1680647092608,20.99688122,1869.0,1868.9,0.1]
[1680647092812,21.22688122,1869.0,1868.9,0.1]
[1680647094540,17.16076904,1869.0,1868.9,0.1]
[1680647096825,1.143,1869.0,1868.9,0.1]
[1680647097023,1.151,1869.2,1868.9,0.1]
[1680647097024,1.144,1869.1,1868.9,0.1]
[1680647098664,1.41151,1869.1,1868.9,0.1]
[1680647098952,1.144,1869.0,1868.9,0.1]
[1680647101064,1.94656,1869.0,1868.9,0.1]
[1680647101266,2.54822,1869.0,1868.9,0.1]
[1680647102360,2.01318,1869.0,1868.9,0.1]
[1680647105619,4.51168218,1869.0,1868.9,0.1]
[1680647105826,4.74168218,1869.0,1868.9,0.1]
[1680647106569,1.74566,1869.0,1868.9,0.1]
[1680647107761,1.144,1869.0,1868.9,0.1]
[1680647108620,1.41152,1869.0,1868.9,0.1]
[1680647109480,1.144,1869.0,1868.9,0.1]
[1680647109683,1.41152,1869.0,1868.9,0.1]
[1680647109994,1.144,1869.0,1868.9,0.1]
[1680647110196,1.41152,1869.0,1868.9,0.1]
[1680647110699,1.144,1869.0,1868.9,0.1]
[1680647110906,1.14163171,1869.0,1868.9,0.1]
[1680647112074,4.42149,1869.2,1868.9,0.1]
[1680647112075,1.146,1869.1,1868.9,0.1]
[1680647114405,1.4135,1869.1,1868.9,0.1]
[1680647114704,4.3769,1869.1,1868.9,0.1]
[1680647114915,5.168288,1869.1,1868.9,0.1]
[1680647115095,5.170288,1869.1,1868.9,0.1]
[1680647116007,4.902788,1869.1,1868.9,0.1]
[1680647116212,5.168298,1869.1,1868.9,0.1]
[1680647116426,5.170298,1869.1,1868.9,0.1]
[1680647116773,0.5170298,1869.0,1868.9,0.1]
[1680647117010,2.4595898,1869.0,1868.9,0.1]
[1680647117322,1.94256,1869.0,1868.9,0.1]
[1680647118182,1.40752,1869.0,1868.9,0.1]
[1680647121536,0.002,1869.1,1868.9,0.34078]
[1680647121820,14.5491,1869.6,1868.9,3.58836218]
[1680647121971,14.5491,1869.6,1869.1,0.24074]
[1680647121972,0.002,1869.6,1869.1,0.24074]
[1680647122173,9.6153,1869.8,1869.2,0.26268409]
[1680647122490,9.6173,1869.8,1869.2,0.74416409]
[1680647122817,9.6173,1869.8,1869.3,0.07441641]
[1680647123019,9.6173,1869.8,1869.4,0.24071]
[1680647128129,9.6263,1869.8,1869.4,0.24071]
[1680647129323,9.6173,1869.8,1869.4,0.24071]
[1680647129507,9.6173,1869.8,1869.4,0.32036664]
[1680647132099,9.6173,1869.8,1869.5,0.22300456]
[1680647133017,9.6263,1869.8,1869.5,0.22300456]
[1680647134118,9.6173,1869.8,1869.5,0.22300456]
[1680647135921,9.6173,1869.8,1869.3,0.24072]
[1680647136125,10.72037,1869.8,1869.3,0.24072]
[1680647139419,10.71725715,1869.8,1869.3,0.24072]
[1680647139620,11.86025715,1869.8,1869.3,0.24072]
[1680647139826,11.85725715,1869.8,1869.3,0.24072]
[1680647141749,11.85725715,1869.8,1869.3,0.72218]
[1680647145942,11.85725715,1869.8,1869.4,0.24217009]
[1680647146145,1.18572572,1869.7,1869.4,0.24217009]
[1680647146489,10.75418715,1869.8,1869.4,0.48288009]
[1680647146838,10.75418715,1869.8,1869.4,0.24217009]
[1680647147341,10.75418715,1869.8,1869.4,0.48288009]
[1680647148272,10.75418715,1869.8,1869.4,0.24217009]
[1680647149250,11.02158715,1869.8,1869.4,0.24217009]
[1680647149546,1.10215872,1869.7,1869.4,0.24217009]
[1680647149866,1.36957872,1869.7,1869.4,0.24217009]
[1680647150070,1.36957872,1869.7,1869.2,0.02795409]
[1680647150271,4.5586,1869.7,1869.2,0.26469409]
[1680647150487,4.82602,1869.7,1869.2,0.26869409]
[1680647151189,4.82602,1869.7,1869.2,0.26469409]
[1680647151491,4.5586,1869.7,1869.2,0.26869409]
[1680647152283,4.5586,1869.7,1869.2,0.3437145]
[1680647153871,4.5586,1869.7,1869.2,0.8251945]
[1680647154072,4.5676,1869.7,1869.2,0.79724041]
[1680647154605,0.009,1869.7,1869.2,0.79724041]
[1680647154902,1.149,1869.9,1869.2,0.79724041]
[1680647155081,1.149,1869.9,1869.4,0.72213]
[1680647156590,1.146,1869.9,1869.4,0.72213]
[1680647156765,1.14,1869.9,1869.4,0.72213]
[1680647158100,1.149,1869.9,1869.4,0.72213]
[1680647160959,1.149,1869.9,1869.5,0.23870305]
[1680647161191,1.149,1869.9,1869.5,0.47939305]
[1680647162051,0.009,1869.9,1869.5,0.47939305]
[1680647162253,0.009,1869.9,1869.5,0.57547536]
[1680647162881,0.011,1870.1,1869.6,8.38102218]
[1680647163212,0.11000001,1870.2,1869.9,1.68456]
[1680647163412,0.11000001,1870.2,1870.1,0.24062]
[1680647163983,0.11000001,1870.2,1870.1,0.23833845]
[1680647164399,0.11000001,1870.2,1870.1,0.71958845]
[1680647166409,0.11000001,1870.2,1870.1,0.23833845]
[1680647167954,0.11000001,1870.2,1870.0,0.24063]
[1680647168104,0.11000001,1870.2,1869.8,0.96265]
[1680647168306,0.11000001,1870.2,1869.9,0.818205]
[1680647168506,0.11000001,1870.2,1869.9,0.768205]
[1680647175966,0.11000001,1870.2,1870.1,0.24062]
[1680647180109,0.11000001,1870.2,1870.1,0.72187]
[1680647188729,0.10616946,1870.2,1870.1,0.72187]
[1680647188931,0.10616946,1870.2,1870.1,1.286037]
[1680647189946,0.10616946,1870.2,1870.1,0.804787]
[1680647191064,0.10616946,1870.2,1870.1,1.0378532]
[1680647195767,0.10616946,1870.2,1870.1,0.2330662]
[1680647196154,0.10616946,1870.2,1870.1,0.4736862]
[1680647199248,0.10616946,1870.2,1870.1,0.9549362]
[1680647201982,0.10616946,1870.2,1870.1,0.4736862]
[1680647205002,0.10616946,1870.2,1870.1,0.9549362]
[1680647213615,0.10333776,1870.2,1870.1,0.9549362]
[1680647226669,0.10333776,1870.2,1870.1,0.4736862]
[1680647228734,0.10333776,1870.2,1870.1,0.9549362]
[1680647231334,0.10333776,1870.2,1870.1,0.4736862]
[1680647234552,0.10019367,1870.2,1870.1,0.4736862]
[1680647234733,0.10019367,1870.2,1870.1,0.9549362]
[1680647239092,0.10019367,1870.2,1870.1,0.4736862]
[1680647242495,0.10019367,1870.2,1870.1,0.2330662]
[1680647243222,0.10019367,1870.2,1870.1,0.4736862]
[1680647243398,0.10019367,1870.2,1870.1,0.2330662]
[1680647245620,0.10019367,1870.2,1870.1,0.4736862]
[1680647251369,0.10019367,1870.2,1870.1,0.9549362]
[1680647255388,0.09802729,1870.2,1870.1,0.9549362]
[1680647259905,0.09802729,1870.2,1870.1,1.05042982]
[1680647260402,0.09802729,1870.2,1870.1,0.56917982]
[1680647262601,0.09802729,1870.2,1870.1,0.4736862]
[1680647262801,0.09802729,1870.2,1870.1,0.2330662]
[1680647264270,0.09802729,1870.2,1870.1,0.4736862]
[1680647268598,0.09802729,1870.2,1870.1,0.2330662]
[1680647270798,0.09802729,1870.2,1870.1,0.4736862]
[1680647275394,0.09802729,1870.2,1870.1,0.2330662]
[1680647275806,0.09802729,1870.2,1870.1,0.4736862]
[1680647276231,0.09802729,1870.2,1870.1,0.2330662]
[1680647277337,0.09802729,1870.2,1870.1,0.4736862]
[1680647277741,0.09532446,1870.2,1870.1,0.9549362]
[1680647293093,0.09532446,1870.2,1870.1,0.8549362]
[1680647294051,0.09532446,1870.2,1870.1,0.94981497]
[1680647294513,0.09532446,1870.2,1870.1,1.14104847]
[1680647300567,0.09532446,1870.2,1870.1,0.94981497]
[1680647301567,0.09532446,1870.2,1870.1,0.81674877]
[1680647301969,0.09532446,1870.2,1870.1,0.94316166]
[1680647308414,0.09532446,1870.2,1870.1,0.46191166]
[1680647309817,0.09532446,1870.2,1870.1,0.22129166]
[1680647313287,0.09532446,1870.2,1870.1,0.46191166]
[1680647320242,0.09532446,1870.2,1870.1,0.94316166]
[1680647325336,0.09300085,1870.2,1870.1,1.13373283]
[1680647325718,0.09300085,1870.2,1870.1,0.94316166]
[1680647325918,0.09300085,1870.2,1870.1,0.46191166]
[1680647327530,0.73700085,1870.2,1870.1,0.46191166]
[1680647329598,0.68700085,1870.2,1870.1,0.46191166]
[1680647331537,0.04300085,1870.2,1870.1,0.46191166]
[1680647331733,0.04300085,1870.2,1870.1,0.55622983]
[1680647333947,0.04300085,1870.2,1870.1,1.03747983]
[1680647334105,0.04300085,1870.2,1870.1,0.94316166]
[1680647336436,0.04300085,1870.2,1870.1,0.46191166]
[1680647353938,0.04074057,1870.2,1870.1,0.46191166]
[1680647355205,0.04074057,1870.2,1870.1,0.22129166]
[1680647355409,0.04074057,1870.2,1870.1,0.46191166]
[1680647356056,0.04074057,1870.2,1870.1,0.94316166]
[1680647361674,0.04074057,1870.2,1870.1,0.46191166]
[1680647367466,0.04074057,1870.2,1870.1,0.21191166]
[1680647368175,0.04074057,1870.2,1870.1,0.4454973]
[1680647368681,0.04074057,1870.2,1870.1,0.47420564]
[1680647370285,0.68374057,1870.2,1870.1,0.23358564]
[1680647370495,1.40811463,1870.2,1870.1,0.23358564]
[1680647373984,1.43006874,1870.2,1870.1,0.23358564]
[1680647389902,1.42631284,1870.2,1870.1,0.23358564]
[1680647392796,5.75368502,1870.2,1870.1,0.23358564]
[1680647392979,5.75568502,1870.2,1869.7,0.006]
[1680647393180,0.644,1869.8,1869.7,0.24668]
[1680647393378,0.644,1869.8,1869.7,0.006]
[1680647394117,0.644,1869.8,1869.7,0.2576449]
[1680647395188,0.644,1869.8,1869.7,0.4983249]
[1680647397029,0.645,1870.0,1869.7,0.9796849]
[1680647397173,0.645,1870.0,1869.8,0.09796849]
[1680647397367,0.645,1870.0,1869.9,0.24065]
[1680647399880,0.645,1870.0,1869.9,0.72195]
[1680647401081,0.645,1870.0,1869.9,0.24065]
[1680647402224,0.643,1870.1,1869.9,0.24065]
[1680647402880,0.68698467,1870.2,1869.9,0.24065]
[1680647406944,1.72205855,1870.2,1869.9,0.24065]
[1680647416113,1.72205855,1870.2,1869.8,0.24066]
[1680647417324,1.72205855,1870.2,1869.7,0.24666]
[1680647417325,0.643,1869.9,1869.7,0.24666]
[1680647417547,0.643,1869.9,1869.7,0.24067]
[1680647417754,0.643,1869.9,1869.7,0.72203]
[1680647417938,0.7718,1869.9,1869.7,0.72203]
[1680647418237,0.7718,1869.9,1869.7,0.24067]
[1680647422468,0.7718,1869.9,1869.8,0.25209183]
[1680647425172,4.18082218,1869.9,1869.8,0.25209183]
[1680647425380,9.80682218,1869.9,1869.8,0.25209183]
[1680647425583,9.80882218,1869.9,1869.8,0.25209183]